bitfinex-derivatives/quotes_ETHF0:USTF0_20250902
["timestamp","ask_amount","ask_price","bid_price","bid_amount"]
[1756841926466,0.7122,4276.2,4276.1,0.667]
[1756841926661,0.7122,4276.2,4276.1,0.4535]
[1756841926868,0.7122,4276.2,4276.1,0.9889]
[1756841928072,3.2078,4276.5,4276.2,0.3219]
[1756841928262,3.92,4276.5,4276.4,0.7449]
[1756841928771,0.7122,4276.5,4275.9,0.3219]
[1756841929066,0.5099,4276.4,4276.3,0.4535]
[1756841929263,0.2097,4276.4,4276.3,0.9889]
[1756841930268,0.7122,4276.4,4275.9,0.3219]
[1756841930467,0.7122,4276.4,4275.6,3.2078]
[1756841930468,0.7122,4276.4,4276.3,0.7449]
[1756841931865,0.7122,4276.4,4275.9,0.3219]
[1756841932069,0.7122,4276.4,4276.0,0.244]
[1756841932265,0.7122,4276.4,4276.0,0.5659]
[1756841932462,0.3002,4276.3,4276.0,0.5659]
[1756841932768,0.7122,4276.1,4276.0,0.7754]
[1756841932970,0.7122,4276.1,4276.0,0.9889]
[1756841933270,0.2097,4276.1,4276.0,0.9889]
[1756841933472,0.5099,4276.1,4276.0,0.9889]
[1756841933970,0.5099,4276.1,4276.0,0.7449]
[1756841934172,0.5099,4276.1,4276.0,0.9889]
[1756841934472,0.3002,4276.9,4276.1,0.3219]
[1756841935866,0.7122,4276.2,4276.1,0.7449]
[1756841936068,0.7122,4276.2,4276.1,0.9889]
[1756841936268,0.7122,4276.2,4276.1,0.667]
[1756841937573,0.7122,4276.2,4276.1,0.9889]
[1756841937774,0.7122,4276.2,4276.1,0.7449]
[1756841937970,0.2097,4276.2,4276.1,6.3239]
[1756841938176,0.7122,4276.9,4276.8,0.2095]
[1756841938475,0.3002,4276.8,4276.2,5.6569]
[1756841938778,3.2078,4277.0,4276.3,0.2095]
[1756841938779,0.7122,4276.4,4276.3,0.2095]
[1756841938977,0.7122,4276.4,4276.3,0.244]
[1756841939276,0.7122,4276.4,4276.3,0.4535]
[1756841940267,0.7122,4276.4,4276.3,0.9889]
[1756841940463,0.7122,4276.4,4276.3,0.2095]
[1756841940667,0.7122,4276.4,4276.3,0.244]
[1756841941068,0.7122,4276.4,4276.3,0.9889]
[1756841941575,0.7122,4276.4,4276.3,0.244]
[1756841942876,0.412,4276.4,4276.0,5.335]
[1756841943077,0.3002,4276.3,4276.1,0.244]
[1756841943374,0.3002,4276.1,4276.0,5.335]
[1756841943575,0.7122,4276.1,4276.0,5.335]
[1756841943971,0.7122,4276.1,4275.7,0.244]
[1756841945179,0.5025,4275.2,4275.1,0.7449]
[1756841945375,0.2097,4275.2,4275.1,0.9889]
[1756841945678,0.7122,4275.2,4275.1,0.2095]
[1756841945878,0.7122,4275.1,4275.0,15.2078]
[1756841947478,0.7122,4275.1,4275.0,12.0]
[1756841947775,4.7122,4275.1,4275.0,12.0]
[1756841947981,5.19012,4275.1,4275.0,11.59309396]
[1756841948882,4.9562,4275.1,4275.0,11.59309396]
[1756841949078,4.7122,4275.1,4275.0,11.59309396]
[1756841949280,4.9562,4275.1,4275.0,11.59309396]
[1756841949581,5.19012,4275.1,4275.0,11.59309396]
[1756841949887,4.9562,4275.1,4275.0,11.59309396]
[1756841953980,4.7122,4275.1,4275.0,11.59309396]
[1756841954181,4.9562,4275.1,4275.0,11.59309396]
[1756841954490,0.7122,4275.1,4275.0,11.59309396]
[1756841954688,0.9562,4275.1,4275.0,11.79289396]
[1756841954882,0.7122,4275.1,4275.0,12.29669396]
[1756841955179,3.9523,4275.8,4275.7,0.3948]
[1756841955384,3.9523,4275.8,4275.7,0.7036]
[1756841955987,4.1963,4275.8,4275.7,0.7036]
[1756841956390,3.9523,4275.8,4275.7,0.7036]
[1756841956590,4.1963,4275.8,4275.7,0.7036]
[1756841958483,4.1963,4275.8,4275.7,0.3948]
[1756841959193,4.1963,4275.8,4275.0,11.59309396]
[1756841959194,0.4231,4275.5,4275.0,11.83709396]
[1756841959490,0.4231,4275.5,4275.0,11.59309396]
[1756841959491,0.7445,4275.1,4275.0,11.59309396]
[1756841959690,0.9885,4275.1,4275.0,11.59309396]
[1756841962892,0.9885,4275.1,4275.0,11.79289396]
[1756841963798,3.2078,4275.3,4275.2,0.7036]
[1756841963993,4.1963,4275.3,4275.0,11.59309396]
[1756841964188,0.7445,4275.1,4275.0,11.59309396]
[1756841964493,0.7445,4275.1,4275.0,11.79289396]
[1756841964792,0.7445,4275.1,4275.0,11.59309396]
[1756841965390,0.9885,4275.1,4275.0,11.59309396]
[1756841965688,0.9885,4275.1,4275.0,11.79289396]
[1756841965890,3.2078,4275.3,4275.0,11.98789396]
[1756841966097,0.244,4275.2,4275.1,0.7036]
[1756841967498,0.9885,4275.2,4275.1,0.7036]
[1756841967692,0.9885,4275.2,4275.1,0.1998]
[1756841968106,0.9885,4275.2,4275.1,0.5086]
[1756841969299,0.4585,4275.2,4275.1,0.7036]
[1756841970000,0.9885,4275.2,4275.1,0.7036]
[1756841970299,0.4585,4275.2,4275.1,0.7036]
[1756841970794,0.9885,4275.2,4275.1,0.3948]
[1756841971196,0.4585,4275.2,4275.1,0.7036]
[1756841971498,3.2078,4275.3,4275.1,0.3948]
[1756841971693,3.2078,4275.3,4275.2,0.3088]
[1756841971900,0.3214,4276.2,4275.2,0.244]
[1756841972095,0.3214,4276.2,4275.5,3.2078]
[1756841972298,0.5359,4276.2,4275.6,0.244]
[1756841972499,0.3214,4276.0,4275.6,0.244]
[1756841972898,0.244,4276.2,4275.6,0.244]
[1756841973200,0.3214,4276.4,4275.6,0.244]
[1756841974795,0.5359,4276.4,4275.6,0.244]
[1756841977098,0.1187,4277.0,4275.7,3.2078]
[1756841977099,0.2145,4276.9,4275.7,3.2078]
[1756841977302,0.3214,4276.8,4276.2,3.2078]
[1756841977600,0.5359,4276.9,4276.3,0.243]
[1756841978803,0.3214,4276.9,4276.3,0.243]
[1756841979196,0.3214,4276.9,4276.7,3.2078]
[1756841979396,0.243,4277.3,4276.7,3.4508]
[1756841979905,0.2145,4277.2,4276.7,3.4508]
[1756841980104,0.3214,4277.0,4276.7,3.4508]
[1756841980305,0.2145,4277.2,4276.7,3.4508]
[1756841980506,0.3214,4277.0,4276.7,3.4508]
[1756841980706,0.3214,4276.9,4276.7,3.4508]
[1756841981005,3.4223,4277.8,4276.7,3.4508]
[1756841981201,0.5302,4277.7,4276.7,3.4508]
[1756841981594,0.3232,4277.6,4277.3,3.2078]
[1756841981796,3.4148,4277.8,4277.3,3.2078]
[1756841982100,0.3661,4278.5,4277.3,3.2078]
[1756841982300,0.207,4278.3,4277.3,3.2078]
[1756841982497,0.3661,4278.5,4277.3,3.2078]
[1756841982498,0.207,4278.2,4277.3,3.2078]
[1756841982698,0.5302,4278.1,4277.3,3.2078]
[1756841982900,0.3232,4278.1,4277.3,3.2078]
[1756841983100,0.3301,4278.5,4277.3,3.2078]
[1756841983303,0.207,4278.4,4277.9,3.2078]
[1756841983499,0.3301,4278.5,4278.0,0.243]
[1756841983704,0.5302,4278.6,4278.0,0.243]
[1756841985513,0.3232,4278.6,4278.0,0.243]
[1756841985720,0.5302,4278.6,4278.0,0.243]
[1756841985917,0.1189,4278.5,4278.0,0.243]
[1756841986124,0.5302,4278.4,4278.0,0.243]
[1756841986617,0.5302,4278.3,4278.0,0.243]
[1756841986819,0.3232,4278.2,4278.0,0.243]
[1756841987015,0.207,4278.4,4278.0,0.243]
[1756841987215,0.1189,4278.5,4278.0,0.243]
[1756841987616,0.3232,4278.6,4278.0,0.243]
[1756841987819,0.5302,4278.6,4278.0,0.243]
[1756841988219,0.3259,4278.5,4278.0,0.243]
[1756841988420,0.207,4278.4,4278.0,0.243]
[1756841988622,0.3259,4278.5,4278.0,0.243]
[1756841988819,0.3232,4278.4,4278.0,0.243]
[1756841989020,0.207,4278.3,4278.0,0.243]
[1756841989318,0.5302,4278.8,4278.0,5.578]
[1756841989523,0.17,4278.9,4278.4,3.2078]
[1756841989722,0.17,4278.9,4278.5,0.243]
[1756841990116,0.4932,4278.9,4278.5,0.243]
[1756841990318,0.3232,4278.8,4278.5,0.243]
[1756841990518,0.17,4278.9,4278.5,0.243]
[1756841990819,0.3232,4278.8,4278.5,0.243]
[1756841992222,0.17,4278.9,4278.5,0.243]
[1756841992423,0.3232,4278.8,4278.6,0.243]
[1756841992626,0.207,4278.8,4278.6,0.243]
[1756841992823,0.5302,4278.7,4278.6,0.243]
[1756841994021,0.5302,4278.7,4278.4,3.2078]
[1756841994022,0.207,4278.7,4278.4,3.2078]
[1756841994226,0.17,4278.9,4278.5,0.243]
[1756841994524,0.3232,4278.8,4278.5,0.243]
[1756841995525,0.17,4278.9,4278.5,0.243]
[1756841995726,0.3232,4278.8,4278.5,0.243]
[1756841996120,0.17,4278.9,4278.5,0.243]
[1756841996727,0.4932,4278.9,4278.5,0.243]
[1756841997229,0.3232,4278.8,4278.5,0.243]
[1756841997430,0.17,4278.9,4278.5,0.243]
[1756841997625,0.3232,4278.8,4278.5,0.243]
[1756841997827,0.377,4278.9,4278.5,0.243]
[1756841998031,0.3232,4278.8,4278.5,0.243]
[1756841998223,0.17,4278.9,4278.5,0.243]
[1756841998425,0.3232,4278.8,4278.5,0.243]
[1756841998731,0.5299,4278.7,4278.6,0.243]
[1756841998929,0.7369,4278.7,4278.6,0.243]
[1756841999129,0.5302,4278.7,4278.6,0.243]
[1756841999331,0.3232,4278.7,4278.6,0.243]
[1756842000021,0.7369,4278.7,4278.6,0.243]
[1756842000226,0.4137,4278.7,4278.4,3.2078]
[1756842000423,0.8558,4278.5,4278.4,3.2078]
[1756842000622,0.7369,4278.5,4278.4,3.4508]
[1756842000832,0.3232,4278.5,4278.4,3.4508]
[1756842002027,0.17,4278.9,4278.4,3.4508]
[1756842002028,0.4932,4278.9,4278.4,3.4508]
[1756842002229,0.17,4278.9,4278.4,4.10521]
[1756842002428,0.17,4278.9,4278.4,7.4508]
[1756842002624,0.17,4278.9,4278.5,0.23372]
[1756842002827,0.17,4278.9,4278.4,7.87148]
[1756842002828,0.17,4278.9,4278.7,0.42066]
[1756842003028,0.3232,4279.5,4278.8,0.243]
[1756842003227,0.3232,4279.5,4279.4,3.2078]
[1756842003427,0.3232,4279.5,4279.4,3.4508]
[1756842003633,0.3232,4279.9,4279.4,3.4508]
[1756842003831,3.2078,4280.4,4279.4,3.2078]
[1756842004133,3.2078,4280.4,4279.9,3.2078]
[1756842004134,0.8558,4280.0,4279.9,3.2078]
[1756842004330,0.8558,4280.0,4279.9,3.4508]
[1756842006325,0.8558,4280.0,4279.9,3.2078]
[1756842006529,0.8558,4280.0,4279.3,0.243]
[1756842006530,0.8558,4279.5,4279.3,0.243]
[1756842008138,0.3232,4279.4,4278.7,3.2078]
[1756842008327,0.3232,4279.4,4278.8,0.243]
[1756842008529,0.5302,4279.4,4279.3,3.2078]
[1756842008830,0.3232,4279.4,4279.3,3.4508]
[1756842009224,0.5302,4279.4,4279.3,3.4508]
[1756842009629,0.7369,4279.4,4279.3,3.4508]
[1756842010137,0.5302,4279.4,4279.3,3.4508]
[1756842010333,0.3232,4279.9,4279.3,3.4508]
[1756842010635,0.3259,4280.0,4279.3,3.4508]
[1756842010833,0.5302,4279.9,4279.3,3.4508]
[1756842011039,0.5302,4279.9,4279.8,3.2078]
[1756842011225,0.3232,4279.9,4279.8,3.4508]
[1756842013339,0.5237,4279.9,4279.8,3.4508]
[1756842013834,0.3232,4279.9,4279.8,3.4508]
[1756842014040,0.5237,4279.9,4279.8,3.4508]
[1756842015839,0.3232,4279.9,4279.8,3.4508]
[1756842016032,0.5035,4280.5,4279.8,3.2078]
[1756842016233,0.5035,4280.4,4280.3,3.2078]
[1756842016438,0.5035,4280.4,4280.3,3.4508]
[1756842016838,0.7041,4280.4,4280.3,3.4508]
[1756842018642,0.303,4280.4,4280.3,3.4508]
[1756842019736,0.7041,4280.4,4280.3,3.4508]
[1756842020543,0.5035,4280.4,4280.3,3.4508]
[1756842020744,0.7041,4280.4,4280.3,3.4508]
[1756842020934,0.303,4280.4,4280.3,3.4508]
[1756842021644,0.5035,4280.4,4280.3,3.4508]
[1756842022040,0.3194,4281.0,4280.3,3.4508]
[1756842022244,0.7041,4280.4,4280.3,3.2078]
[1756842022543,0.7041,4280.4,4280.3,3.4508]
[1756842024848,0.7041,4280.4,4280.3,3.2078]
[1756842025048,0.7041,4280.4,4280.3,3.4508]
[1756842025343,0.7041,4280.4,4280.3,3.2078]
[1756842025550,0.7041,4280.4,4278.1,30.861]
[1756842025551,0.7041,4279.4,4279.3,3.2078]
[1756842025847,0.7041,4279.4,4279.3,3.4508]
[1756842026248,0.4011,4280.1,4280.0,10.63979396]
[1756842026447,0.4011,4280.1,4280.0,10.88279396]
[1756842026647,0.98928692,4280.1,4280.0,11.37809396]
[1756842027250,0.4011,4280.1,4280.0,11.37809396]
[1756842027853,0.4011,4280.1,4280.0,11.59219396]
[1756842028552,5.29261418,4280.1,4280.0,10.63979396]
[1756842029952,5.29261418,4280.1,4280.0,11.13509396]
[1756842031248,5.29261418,4280.1,4280.0,10.93629396]
[1756842031953,0.78901418,4280.1,4280.0,11.34919396]
[1756842032154,0.58851418,4280.1,4280.0,11.70839396]
[1756842032459,3.2078,4280.4,4280.3,0.4129]
[1756842032460,3.4083,4280.4,4280.3,0.4129]
[1756842032756,3.4083,4280.4,4280.3,0.7094]
[1756842033156,4.19838618,4280.4,4280.3,0.7094]
[1756842033454,3.6089,4280.4,4280.3,0.7094]
[1756842033656,3.9119,4280.4,4280.3,0.7094]
[1756842033951,3.9119,4280.4,4280.3,0.4953]
[1756842034856,3.6089,4280.4,4280.0,10.63979396]
[1756842035159,0.7041,4280.1,4280.0,10.63979396]
[1756842035359,1.29359576,4280.1,4280.0,10.63979396]
[1756842036463,0.7041,4280.1,4280.0,10.63979396]
[1756842036851,3.2078,4280.4,4280.0,11.34919396]
[1756842037057,3.4083,4280.4,4280.3,0.7094]
[1756842037263,3.2078,4280.4,4280.3,0.9514]
[1756842037866,3.2078,4280.9,4280.4,0.2965]
[1756842038063,3.2078,4280.9,4280.8,0.7094]
[1756842038263,3.2078,4280.9,4280.8,0.9514]
[1756842039361,0.242,4281.5,4280.9,0.2965]
[1756842039659,1.29387706,4281.4,4281.3,0.1988]
[1756842039866,0.99087706,4281.4,4281.3,0.4953]
[1756842040065,0.58977706,4281.4,4281.3,0.7094]
[1756842040366,0.2005,4281.4,4281.3,0.7094]
[1756842040865,3.2078,4282.2,4281.4,0.2965]
[1756842041061,1.29414779,4282.1,4281.3,0.2917]
[1756842041363,0.3984,4281.4,4281.3,0.4884]
[1756842041666,0.3984,4281.4,4281.3,0.6954]
[1756842043067,0.7066,4281.4,4281.3,0.4884]
[1756842043265,3.2078,4281.7,4281.3,0.4037]
[1756842043454,0.6404,4281.8,4281.7,0.1967]
[1756842043660,1.23033937,4281.8,4281.7,0.4884]
[1756842044561,1.53853937,4281.8,4281.2,0.2917]
[1756842044766,0.9486,4281.8,4281.2,0.5337]
[1756842045564,0.9486,4281.8,4281.2,0.242]
[1756842045761,0.3984,4281.8,4281.7,0.6954]
[1756842045958,0.2014,4281.8,4281.7,0.6954]
[1756842046159,3.516,4282.2,4281.7,0.6954]
[1756842046160,3.2078,4282.2,4281.8,0.2917]
[1756842046363,3.2078,4282.2,4282.0,0.4037]
[1756842046562,3.70287506,4282.9,4282.1,0.4037]
[1756842046762,3.70287506,4282.9,4282.7,0.6954]
[1756842046763,0.58993985,4282.8,4282.7,0.6954]
[1756842047366,0.79133985,4282.8,4282.7,0.6954]
[1756842047564,0.2014,4282.8,4282.7,0.6954]
[1756842048878,3.2078,4282.9,4282.7,0.4037]
[1756842049073,3.2078,4282.9,4282.8,0.6954]
[1756842049771,3.758,4283.5,4282.9,0.2917]
[1756842049975,1.29563294,4283.4,4283.3,0.4884]
[1756842050171,0.7066,4283.4,4283.3,0.4884]
[1756842051168,0.3984,4283.4,4283.3,0.6954]
[1756842051675,0.7066,4283.4,4283.3,0.6954]
[1756842052677,0.3984,4283.4,4283.3,0.6954]
[1756842053174,0.2014,4283.4,4283.3,0.6954]
[1756842054671,3.516,4283.5,4283.4,0.2917]
[1756842054866,3.9144,4283.5,4283.4,0.2917]
[1756842055069,3.9144,4283.5,4283.4,0.4884]
[1756842055270,3.6062,4283.5,4282.9,0.191]
[1756842055575,0.3984,4283.1,4283.0,0.6954]
[1756842057667,0.7066,4283.1,4282.5,3.2078]
[1756842057973,0.3984,4282.6,4282.5,3.9032]
[1756842058878,0.7066,4282.6,4282.5,3.9032]
[1756842059180,0.3082,4283.0,4282.5,3.9032]
[1756842059370,0.8966,4283.0,4282.9,0.1967]
[1756842059566,0.3984,4283.0,4282.9,0.6954]
[1756842059983,0.242,4283.2,4282.9,0.6954]
[1756842060179,3.6062,4283.5,4283.4,0.4037]
[1756842060379,3.6062,4283.5,4283.4,0.6954]
[1756842061175,0.2014,4283.5,4283.4,0.6954]
[1756842061377,0.3984,4283.5,4283.4,0.6954]
[1756842062275,0.242,4283.9,4283.4,0.6954]
[1756842062576,0.3082,4283.9,4283.5,0.2917]
[1756842062775,0.2014,4283.6,4283.5,0.6954]
[1756842063281,3.2078,4284.1,4283.6,0.2917]
[1756842063475,3.2078,4284.1,4283.5,0.5237]
[1756842063476,4.1564,4284.1,4284.0,0.1967]
[1756842063676,4.1564,4284.1,4284.0,0.4884]
[1756842064275,4.1564,4284.1,4283.1,0.2917]
[1756842064978,4.1564,4284.1,4284.0,0.1967]
[1756842065174,0.2014,4283.2,4283.1,0.4884]
[1756842065478,0.2014,4283.2,4283.1,0.6954]
[1756842065873,0.3082,4283.7,4283.2,0.2917]
[1756842066080,0.7066,4283.7,4283.6,0.1967]
[1756842066379,0.3984,4283.7,4283.1,0.2917]
[1756842066583,0.7066,4283.2,4283.1,0.4884]
[1756842067076,0.7066,4283.2,4282.5,3.3278]
[1756842067284,3.2078,4283.5,4282.5,3.4045]
[1756842067285,0.2014,4282.6,4282.5,3.4045]
[1756842067490,0.2014,4282.6,4282.5,0.4037]
[1756842067781,0.3082,4283.2,4282.5,0.5237]
[1756842067982,0.2014,4282.7,4282.6,0.6954]
[1756842068374,0.6404,4283.4,4283.3,0.1967]
[1756842068576,3.2078,4283.5,4283.3,0.4037]
[1756842068775,3.2078,4283.5,4283.0,0.12]
[1756842068776,3.2078,4283.5,4283.4,0.6954]
[1756842068976,0.242,4284.0,4283.4,0.6954]
[1756842069176,0.79052192,4283.9,4283.8,0.1967]
[1756842069375,0.98752192,4283.9,4283.8,0.4884]
[1756842069779,1.29572192,4283.9,4283.8,0.4884]
[1756842069977,1.29572192,4283.9,4283.1,0.2917]
[1756842070182,0.2014,4283.2,4283.1,0.6954]
[1756842070477,3.6062,4283.8,4283.7,0.1967]
[1756842070676,4.19583466,4283.8,4283.7,0.6954]
[1756842071683,4.49753466,4283.8,4283.0,0.12]
[1756842071878,4.49753466,4283.8,4283.1,0.291]
[1756842071879,3.9079,4283.8,4283.1,0.291]
[1756842072075,0.2059,4283.2,4283.1,0.7107]
[1756842072384,0.2059,4283.2,4282.6,0.144]
[1756842072385,0.4022,4282.7,4282.6,0.5018]
[1756842072580,0.7039,4282.7,4282.6,0.5018]
[1756842073181,0.4022,4282.7,4282.4,3.2078]
[1756842073381,0.242,4283.1,4282.5,0.5018]
[1756842073382,0.7039,4282.6,4282.5,0.5018]
[1756842074184,0.4022,4282.6,4282.4,3.2078]
[1756842074387,0.7039,4282.5,4282.4,3.2078]
[1756842075088,0.7039,4282.5,4281.8,3.4498]
[1756842075089,0.99329374,4282.5,4281.8,3.4498]
[1756842075287,0.4022,4282.5,4282.4,0.5018]
[1756842075486,0.9932705,4282.5,4282.4,0.7107]
[1756842076281,0.5910705,4282.5,4282.4,0.7107]
[1756842076488,3.4137,4283.3,4283.2,0.4197]
[1756842076682,0.79750172,4283.3,4283.2,0.7107]
[1756842076884,0.99380172,4283.3,4283.2,0.7107]
[1756842077282,0.59160172,4283.3,4283.2,0.7107]
[1756842077492,0.99380172,4283.3,4283.2,0.7107]
[1756842078889,0.3017,4283.2,4283.1,0.2108]
[1756842079091,0.99380172,4283.2,4283.1,0.7107]
[1756842079292,0.79750172,4283.2,4283.1,0.7107]
[1756842079988,0.59160172,4283.2,4283.1,0.7107]
[1756842081397,0.99380172,4283.2,4283.1,0.7107]
[1756842081990,0.59160172,4283.2,4283.1,0.7107]
[1756842082600,3.2078,4283.8,4283.1,0.7107]
[1756842082893,0.59133238,4283.7,4283.6,0.7107]
[1756842083496,3.2078,4283.8,4283.6,0.7107]
[1756842083798,3.2078,4283.8,4283.7,0.7107]
[1756842084092,3.79924268,4283.8,4283.7,0.7107]
[1756842084292,4.50314268,4283.8,4283.7,0.5018]
[1756842084602,1.29534268,4283.8,4283.7,0.5018]
[1756842084796,0.99364268,4283.8,4283.7,0.7107]
[1756842086299,0.4022,4283.8,4283.7,0.7107]
[1756842086788,3.2078,4284.4,4283.7,0.4197]
[1756842086993,1.29515299,4284.3,4283.9,0.291]
[1756842087287,0.2059,4283.7,4283.6,0.7107]
[1756842087691,0.4022,4283.7,4283.6,0.7107]
[1756842088499,0.7039,4283.7,4283.6,0.7107]
[1756842088805,0.7039,4283.7,4283.1,0.242]
[1756842088806,0.7039,4283.7,4283.1,0.291]
[1756842089002,3.2078,4283.9,4283.1,0.291]
[1756842089003,0.59111537,4283.6,4283.1,0.291]
[1756842089301,0.2059,4283.2,4283.1,0.7107]
[1756842090001,0.7039,4283.2,4283.1,0.7107]
[1756842090202,0.3017,4283.1,4282.5,0.242]
[1756842090404,0.2059,4282.7,4282.6,0.7107]
[1756842091302,3.2078,4283.9,4282.5,0.242]
[1756842091303,0.3017,4283.8,4282.7,0.291]
[1756842091498,0.3017,4284.2,4283.7,0.7107]
[1756842091695,0.59139371,4284.1,4283.8,0.291]
[1756842092005,0.2059,4284.1,4284.0,0.7107]
[1756842092197,0.4022,4284.1,4284.0,0.7107]
[1756842092598,0.9936369,4284.1,4284.0,0.7107]
[1756842093595,0.5914369,4284.1,4284.0,0.7107]
[1756842093793,3.2078,4284.4,4284.0,0.5389]
[1756842093999,3.2078,4284.4,4284.3,0.4197]
[1756842094197,3.79923497,4284.4,4284.3,0.7107]
[1756842094493,3.2078,4284.4,4284.3,0.7107]
[1756842096399,3.4137,4284.4,4284.3,0.7107]
[1756842097197,3.2078,4284.4,4284.3,0.7107]
[1756842097705,3.2078,4285.1,4284.3,0.7107]
[1756842098009,0.79697964,4285.0,4284.9,0.4197]
[1756842098308,0.2059,4285.0,4284.9,0.7107]
[1756842098608,0.79681921,4285.0,4284.9,0.7107]
[1756842099196,0.2059,4285.0,4284.9,0.7107]
[1756842100099,0.4022,4285.0,4284.9,0.7107]
[1756842100307,0.7039,4285.0,4284.9,0.291]
[1756842100507,0.7039,4285.0,4284.3,0.166]
[1756842100508,0.7039,4285.0,4284.3,0.127]
[1756842100709,0.7039,4285.0,4284.4,0.291]
[1756842101300,0.7039,4285.0,4284.9,0.2108]
[1756842101612,0.4022,4285.0,4284.9,0.7209]
[1756842103210,0.7216,4285.0,4284.9,0.7209]
[1756842103416,0.7216,4285.0,4284.1,0.3012]
[1756842104510,0.4157,4284.2,4284.1,0.3012]
[1756842104807,0.7351,4284.2,4284.1,0.4979]
[1756842105110,0.7351,4283.9,4283.3,3.2078]
[1756842105408,0.7351,4283.9,4283.8,0.1967]
[1756842105610,0.7351,4283.9,4283.8,0.3012]
[1756842105803,0.4157,4283.9,4283.8,0.7068]
[1756842106703,0.7351,4283.9,4283.8,0.4979]
[1756842106900,0.3194,4283.8,4283.4,0.3012]
[1756842107105,0.7351,4283.5,4283.3,3.2078]
[1756842107299,0.7351,4283.4,4283.3,3.2078]
[1756842107512,0.3194,4283.3,4282.6,0.3012]
[1756842107707,0.7351,4282.7,4282.6,0.4979]
[1756842107912,0.3194,4282.6,4282.5,3.2078]
[1756842108209,0.3194,4282.6,4282.5,3.7057]
[1756842108210,0.4157,4282.6,4282.5,3.7057]
[1756842108413,0.7351,4282.6,4282.5,3.7057]
[1756842109513,0.4157,4282.6,4282.5,3.7057]
[1756842109815,0.7351,4282.6,4282.5,3.2078]
[1756842110014,0.3194,4282.5,4282.0,3.509]
[1756842110311,0.4157,4282.1,4282.0,3.6134]
[1756842110507,0.7351,4282.1,4282.0,3.2078]
[1756842110713,0.7351,4282.1,4282.0,3.509]
[1756842110907,0.7351,4282.1,4281.5,0.3012]
[1756842111706,0.4157,4281.1,4281.0,0.4979]
[1756842111912,0.4157,4281.1,4281.0,0.7068]
[1756842112413,0.2016,4281.1,4281.0,0.7068]
[1756842112714,0.7351,4281.1,4281.0,0.4979]
[1756842113206,0.3194,4281.5,4281.0,0.4056]
[1756842113514,0.2016,4281.1,4281.0,0.4056]
[1756842113712,0.3194,4281.0,4280.9,3.2078]
[1756842114013,0.4157,4280.5,4280.4,3.6134]
[1756842114401,0.4157,4280.5,4280.4,3.9146]
[1756842114804,0.3194,4281.4,4280.5,0.3012]
[1756842115004,0.2016,4281.4,4281.3,0.7068]
[1756842115405,0.7351,4281.4,4281.3,0.4979]
[1756842115814,0.4157,4281.4,4281.3,0.7068]
[1756842116113,3.2078,4281.6,4281.4,0.3012]
[1756842116316,3.2078,4281.6,4281.5,0.8268]
[1756842117713,3.5272,4282.3,4281.6,0.3012]
[1756842117913,4.1839,4282.3,4282.2,0.1967]
[1756842118118,0.3194,4282.2,4281.1,0.3012]
[1756842118317,0.3194,4282.2,4281.2,0.3012]
[1756842118918,0.7351,4281.3,4281.2,0.4979]
[1756842119308,0.4157,4281.3,4281.2,0.4979]
[1756842119913,0.3194,4281.2,4280.9,3.2078]
[1756842120121,0.7351,4281.0,4280.9,3.2078]
[1756842120611,0.7351,4281.0,4280.9,3.509]
[1756842120810,0.7351,4281.0,4280.9,3.7057]
[1756842121013,0.4157,4281.0,4280.9,0.4979]
[1756842121512,3.2078,4281.8,4280.9,0.4056]
[1756842121513,0.241,4281.5,4280.9,0.4056]
[1756842121718,0.4157,4281.1,4281.0,0.4979]
[1756842122810,0.7351,4281.1,4281.0,0.4979]
[1756842123208,0.7351,4281.1,4280.5,0.3012]
[1756842123413,0.4157,4281.1,4281.0,0.7068]
[1756842123817,3.2078,4281.2,4281.1,0.3012]
[1756842124020,3.2078,4281.2,4281.1,0.7068]
[1756842124509,0.2016,4281.2,4281.1,0.7068]
[1756842125416,0.4157,4281.2,4281.1,0.7068]
[1756842125820,0.241,4281.7,4281.2,0.3012]
[1756842126020,0.4157,4281.3,4281.2,0.4979]
[1756842128124,0.7351,4281.3,4280.7,0.3012]
[1756842128327,0.7351,4281.3,4281.2,0.4979]
[1756842128517,0.4157,4281.3,4281.2,0.7068]
[1756842129415,0.4157,4281.3,4281.2,0.1967]
[1756842129619,0.4157,4281.3,4281.2,0.7068]
[1756842130220,0.7351,4281.3,4281.2,0.4979]
[1756842130623,0.4157,4281.3,4281.2,0.7068]
[1756842130921,3.5272,4281.8,4281.2,0.4056]
[1756842131119,0.7169,4282.4,4282.3,0.1967]
[1756842131326,0.3975,4282.4,4282.3,0.7008]
[1756842131529,0.7095,4282.4,4281.8,0.305]
[1756842132022,0.3975,4282.4,4282.3,0.6992]
[1756842132223,0.7095,4282.4,4282.3,0.305]
[1756842132527,0.7095,4282.4,4282.3,0.5001]
[1756842134029,0.3975,4282.4,4282.3,0.5001]
[1756842135430,0.7095,4282.4,4282.3,0.5001]
[1756842136128,1.2986445,4282.4,4282.3,0.5001]
[1756842136525,0.9866445,4282.4,4282.3,0.6992]
[1756842136728,0.312,4282.8,4282.3,0.6992]
[1756842136729,3.2078,4283.1,4282.3,0.6992]
[1756842137029,3.2078,4283.1,4282.4,0.305]
[1756842137030,0.83019987,4283.0,4282.4,0.305]